bitfinex-derivatives/quotes_BTCF0:USTF0_20230402
["timestamp","ask_amount","ask_price","bid_price","bid_amount"]
[1680432978099,0.009,28385.0,28381.0,0.57600956]
[1680432997607,0.009,28385.0,28381.0,0.53375647]
[1680433007213,0.009,28385.0,28381.0,0.53354854]
[1680433007411,0.009,28385.0,28382.0,0.05]
[1680433008909,0.42725739,28387.0,28382.0,0.05]
[1680433009107,0.009,28385.0,28382.0,0.05]
[1680433011118,0.009,28385.0,28382.0,0.3507]
[1680433015520,0.009,28385.0,28382.0,0.39295309]
[1680433019524,0.009,28385.0,28382.0,0.34295309]
[1680433020624,0.009,28385.0,28382.0,0.04225309]
[1680433020812,0.009,28385.0,28382.0,0.34295309]
[1680433031835,0.009,28385.0,28382.0,0.04225309]
[1680433032735,0.13555739,28385.0,28381.0,0.57580163]
[1680433036141,0.13555739,28385.0,28381.0,0.53354854]
[1680433036339,0.12655739,28384.0,28381.0,0.53354854]
[1680433036638,0.05,28383.0,28381.0,0.53354854]
[1680433036944,0.12655739,28384.0,28381.0,0.53354854]
[1680433038231,0.001,28383.0,28381.0,0.53454854]
[1680433038638,0.001,28383.0,28381.0,0.53354854]
[1680433038839,0.12855739,28384.0,28381.0,0.53354854]
[1680433039439,0.001,28383.0,28381.0,0.53454854]
[1680433039841,0.12855739,28384.0,28381.0,0.53354854]
[1680433040148,0.12855739,28384.0,28381.0,0.57580163]
[1680433040344,0.002,28384.0,28381.0,0.57580163]
[1680433041335,0.001,28383.0,28381.0,0.57680163]
[1680433041536,0.001,28383.0,28381.0,0.23384854]
[1680433041731,0.17655739,28385.0,28381.0,0.23284854]
[1680433041937,0.002,28384.0,28381.0,0.23284854]
[1680433042336,0.001,28383.0,28381.0,0.23384854]
[1680433042739,0.002,28384.0,28381.0,0.23284854]
[1680433043948,0.001,28383.0,28381.0,0.23384854]
[1680433044342,0.002,28384.0,28381.0,0.23284854]
[1680433044742,0.47725739,28385.0,28381.0,0.23284854]
[1680433044947,0.001,28383.0,28381.0,0.23384854]
[1680433045344,0.47725739,28385.0,28381.0,0.23284854]
[1680433045548,0.002,28384.0,28381.0,0.23284854]
[1680433046544,0.47725739,28385.0,28381.0,0.23384854]
[1680433046750,0.001,28383.0,28381.0,0.23384854]
[1680433046947,0.001,28383.0,28381.0,0.23284854]
[1680433047153,0.002,28384.0,28381.0,0.23284854]
[1680433047451,0.47725739,28385.0,28381.0,0.23284854]
[1680433047751,0.48625739,28385.0,28381.0,0.23284854]
[1680433047953,0.47725739,28385.0,28380.0,0.04225309]
[1680433048153,0.002,28384.0,28380.0,0.04225309]
[1680433048353,0.3027,28384.0,28380.0,0.04225309]
[1680433048556,0.3007,28384.0,28380.0,0.04225309]
[1680433049544,0.05,28383.0,28380.0,0.04225309]
[1680433049949,0.3027,28384.0,28380.0,0.04225309]
[1680433050561,0.3007,28384.0,28380.0,0.04225309]
[1680433050754,0.001,28383.0,28380.0,0.04325309]
[1680433050943,0.051,28383.0,28380.0,0.04325309]
[1680433051151,0.001,28383.0,28380.0,0.04225309]
[1680433051344,0.3027,28384.0,28380.0,0.04225309]
[1680433052455,0.3027,28384.0,28380.0,0.04325309]
[1680433052456,0.001,28383.0,28380.0,0.04325309]
[1680433052658,0.051,28383.0,28380.0,0.04325309]
[1680433052857,0.05,28383.0,28380.0,0.04225309]
[1680433053060,0.3027,28384.0,28380.0,0.04225309]
[1680433053251,0.3007,28384.0,28380.0,0.04225309]
[1680433053453,0.001,28383.0,28380.0,0.04325309]
[1680433053655,0.051,28383.0,28380.0,0.04325309]
[1680433053860,0.05,28383.0,28380.0,0.04225309]
[1680433054057,0.3027,28384.0,28380.0,0.04225309]
[1680433054262,0.05,28383.0,28380.0,0.04225309]
[1680433055261,0.051,28383.0,28380.0,0.001]
[1680433056660,0.001,28383.0,28380.0,0.001]
[1680433057655,0.001,28383.0,28380.0,0.04325309]
[1680433057860,0.001,28383.0,28381.0,0.3007]
[1680433058361,0.001,28383.0,28380.0,0.001]
[1680433059161,0.001,28383.0,28381.0,0.001]
[1680433059361,0.051,28383.0,28381.0,0.001]
[1680433059555,0.051,28383.0,28380.0,0.001]
[1680433059955,0.051,28383.0,28379.0,0.09225309]
[1680433060155,0.001,28383.0,28381.0,0.001]
[1680433060355,0.051,28383.0,28381.0,0.001]
[1680433060655,0.001,28383.0,28381.0,0.001]
[1680433061055,0.05,28383.0,28379.0,0.09225309]
[1680433061255,0.051,28383.0,28380.0,0.001]
[1680433062461,0.051,28383.0,28381.0,0.001]
[1680433062662,0.001,28383.0,28381.0,0.001]
[1680433062964,0.001,28383.0,28380.0,0.001]
[1680433063165,0.051,28383.0,28380.0,0.001]
[1680433064261,0.001,28383.0,28380.0,0.001]
[1680433065267,0.002,28383.0,28381.0,0.001]
[1680433065662,0.001,28383.0,28380.0,0.001]
[1680433065863,0.051,28383.0,28380.0,0.001]
[1680433066365,0.051,28383.0,28381.0,0.001]
[1680433066865,0.001,28383.0,28381.0,0.001]
[1680433067166,0.3007,28384.0,28379.0,0.09225309]
[1680433067366,0.001,28383.0,28380.0,0.001]
[1680433067561,0.051,28383.0,28380.0,0.001]
[1680433067762,0.001,28383.0,28380.0,0.001]
[1680433068366,0.001,28383.0,28381.0,0.001]
[1680433068568,0.051,28383.0,28381.0,0.001]
[1680433068764,0.001,28383.0,28381.0,0.001]
[1680433069170,0.001,28383.0,28380.0,0.051]
[1680433069473,0.051,28383.0,28380.0,0.001]
[1680433069667,0.001,28383.0,28381.0,0.001]
[1680433069869,0.051,28383.0,28381.0,0.001]
[1680433070063,0.001,28383.0,28380.0,0.051]
[1680433070270,0.051,28383.0,28380.0,0.001]
[1680433070467,0.001,28383.0,28380.0,0.001]
[1680433071171,0.001,28383.0,28381.0,0.001]
[1680433071373,0.051,28383.0,28381.0,0.001]
[1680433071568,0.3007,28384.0,28380.0,0.051]
[1680433071782,0.001,28383.0,28380.0,0.001]
[1680433072070,0.3007,28384.0,28379.0,0.09225309]
[1680433072271,0.3007,28384.0,28381.0,0.001]
[1680433072272,0.05,28382.0,28381.0,0.001]
[1680433072466,0.001,28383.0,28381.0,0.001]
[1680433072467,0.051,28383.0,28381.0,0.001]
[1680433072775,0.001,28383.0,28380.0,0.001]
[1680433073274,0.051,28383.0,28380.0,0.001]
[1680433073481,0.001,28383.0,28380.0,0.001]
[1680433074176,0.001,28382.0,28381.0,0.001]
[1680433074869,0.051,28383.0,28380.0,0.001]
[1680433075374,0.001,28383.0,28380.0,0.001]
[1680433075773,0.001,28382.0,28381.0,0.001]
[1680433076976,0.001,28383.0,28380.0,0.001]
[1680433077274,0.051,28383.0,28380.0,0.051]
[1680433077474,0.051,28383.0,28380.0,0.001]
[1680433077875,0.001,28382.0,28381.0,0.001]
[1680433078379,0.051,28383.0,28380.0,0.001]
[1680433078872,0.001,28383.0,28380.0,0.001]
[1680433079072,0.051,28383.0,28380.0,0.001]
[1680433079778,0.001,28382.0,28381.0,0.001]
[1680433079976,0.05,28382.0,28379.0,0.09225309]
[1680433080170,0.05,28382.0,28380.0,0.001]
[1680433080376,0.051,28383.0,28380.0,0.001]
[1680433080574,0.001,28382.0,28381.0,0.001]
[1680433081381,0.001,28382.0,28380.0,0.001]
[1680433081577,0.051,28382.0,28380.0,0.001]
[1680433081780,0.001,28382.0,28380.0,0.001]
[1680433082476,0.001,28382.0,28381.0,0.001]
[1680433082876,0.001,28382.0,28380.0,0.001]
[1680433083379,0.05,28383.0,28379.0,0.09225309]
[1680433083581,0.001,28382.0,28381.0,0.001]
[1680433084381,0.001,28382.0,28380.0,0.001]
[1680433084585,0.051,28382.0,28380.0,0.051]
[1680433084783,0.001,28382.0,28380.0,0.001]
[1680433085478,0.001,28382.0,28381.0,0.001]
[1680433085872,0.3507,28383.0,28379.0,0.09225309]
[1680433086077,0.001,28382.0,28380.0,0.001]
[1680433086585,0.001,28382.0,28381.0,0.001]
[1680433086989,0.001,28382.0,28380.0,0.001]
[1680433088684,0.001,28382.0,28381.0,0.001]
[1680433088885,0.051,28382.0,28381.0,0.001]
[1680433089085,0.051,28382.0,28380.0,0.001]
[1680433089281,0.001,28382.0,28380.0,0.001]
[1680433089481,0.001,28382.0,28381.0,0.001]
[1680433089681,0.051,28382.0,28381.0,0.001]
[1680433089988,0.051,28382.0,28380.0,0.001]
[1680433090289,0.001,28382.0,28380.0,0.001]
[1680433091283,0.001,28382.0,28381.0,0.001]
[1680433091489,0.051,28382.0,28381.0,0.001]
[1680433091789,0.001,28382.0,28380.0,0.001]
[1680433091990,0.051,28382.0,28380.0,0.001]
[1680433092289,0.051,28382.0,28381.0,0.001]
[1680433092489,0.001,28382.0,28381.0,0.001]
[1680433092684,0.3007,28383.0,28379.0,0.05]
[1680433092884,0.051,28382.0,28380.0,0.001]
[1680433093290,0.001,28382.0,28381.0,0.001]
[1680433093492,0.051,28382.0,28381.0,0.001]
[1680433093789,0.001,28382.0,28381.0,0.001]
[1680433094393,0.051,28382.0,28380.0,0.001]
[1680433094787,0.001,28382.0,28380.0,0.001]
[1680433095490,0.001,28382.0,28381.0,0.001]
[1680433095691,0.051,28382.0,28381.0,0.001]
[1680433095890,0.001,28382.0,28380.0,0.001]
[1680433096100,0.051,28382.0,28380.0,0.001]
[1680433096300,0.001,28382.0,28380.0,0.001]
[1680433096995,0.001,28382.0,28381.0,0.001]
[1680433097191,0.051,28382.0,28381.0,0.001]
[1680433097397,0.001,28382.0,28380.0,0.001]
[1680433097702,0.3517,28382.0,28380.0,0.001]
[1680433098002,0.3017,28382.0,28381.0,0.001]
[1680433098496,0.3007,28382.0,28380.0,0.001]
[1680433098702,0.3017,28382.0,28380.0,0.001]
[1680433100705,0.3017,28382.0,28381.0,0.001]
[1680433101508,0.3017,28382.0,28380.0,0.001]
[1680433101999,0.3017,28382.0,28381.0,0.001]
[1680433102406,0.3007,28382.0,28379.0,0.05]
[1680433102605,0.3017,28382.0,28380.0,0.001]
[1680433103106,0.3017,28382.0,28381.0,0.001]
[1680433104398,0.3017,28382.0,28380.0,0.001]
[1680433104802,0.3017,28382.0,28378.0,0.04225309]
[1680433104803,0.3017,28382.0,28381.0,0.001]
[1680433105408,0.3017,28382.0,28380.0,0.001]
[1680433105909,0.3017,28382.0,28378.0,0.04225309]
[1680433105910,0.3017,28382.0,28381.0,0.001]
[1680433107312,0.3017,28382.0,28380.0,0.001]
[1680433107705,0.3017,28382.0,28381.0,0.001]
[1680433108111,0.3007,28382.0,28377.0,0.09225309]
[1680433108310,0.3017,28382.0,28380.0,0.001]
[1680433108813,0.3017,28382.0,28381.0,0.001]
[1680433109202,0.3017,28382.0,28380.0,0.001]
[1680433110303,0.3007,28382.0,28377.0,0.09225309]
[1680433110511,0.3017,28382.0,28381.0,0.001]
[1680433110715,0.3007,28382.0,28378.0,0.05]
[1680433110910,0.3017,28382.0,28380.0,0.001]
[1680433111216,0.3007,28382.0,28378.0,0.05]
[1680433111514,0.3017,28382.0,28381.0,0.001]
[1680433111703,0.3017,28382.0,28378.0,0.05]
[1680433111910,0.3017,28382.0,28380.0,0.001]
[1680433113116,0.3017,28382.0,28381.0,0.001]
[1680433114417,0.3017,28382.0,28380.0,0.001]
[1680433114811,0.00019567,28380.0,28377.0,0.04225309]
[1680433115219,9.311e-05,28379.0,28377.0,0.04225309]
[1680433116611,0.00309311,28379.0,28377.0,0.04325309]
[1680433118417,0.00309311,28379.0,28378.0,0.04225309]
[1680433119419,9.311e-05,28379.0,28378.0,0.04225309]
[1680433119618,0.00309311,28379.0,28378.0,0.04325309]
[1680433119819,0.00309311,28379.0,28378.0,0.04318131]
[1680433125220,0.00309311,28379.0,28378.0,0.001]
[1680433132323,0.30379311,28379.0,28378.0,0.001]
[1680433137433,0.00309311,28379.0,28378.0,0.001]
[1680433158845,0.00309311,28379.0,28378.0,0.051]
[1680433159043,0.00309311,28379.0,28378.0,0.001]
[1680433159442,0.00309311,28379.0,28378.0,0.051]
[1680433166750,0.00309311,28379.0,28378.0,0.11437964]
[1680433166951,0.00309311,28379.0,28378.0,0.051]
[1680433170654,0.00309311,28379.0,28378.0,0.05078777]
[1680433174555,0.003,28379.0,28378.0,0.05078777]
[1680433176559,0.003,28379.0,28378.0,0.00078777]
[1680433178059,0.00309311,28379.0,28378.0,0.00078777]
[1680433182160,0.00309311,28379.0,28378.0,0.05078777]
[1680433186856,0.00309311,28379.0,28378.0,0.00078777]
[1680433192270,0.00309311,28379.0,28378.0,0.05078777]
[1680433192870,0.00309311,28379.0,28378.0,0.00078777]
[1680433199680,0.00309311,28379.0,28378.0,0.05078777]
[1680433200884,0.00309311,28379.0,28378.0,0.00078777]
[1680433223392,0.00309311,28379.0,28378.0,0.00058776]
[1680433223805,0.00309311,28379.0,28373.0,0.06337964]
[1680433223806,0.05,28378.0,28373.0,0.06337964]
[1680433223994,0.0001552,28377.0,28373.0,0.06337964]
[1680433224496,0.0001552,28377.0,28373.0,0.11337964]
[1680433224697,0.0001552,28377.0,28374.0,0.05]
[1680433224896,0.17675306,28380.0,28374.0,0.05]
[1680433225098,0.003,28378.0,28374.0,0.05]
[1680433225397,0.003,28377.0,28374.0,0.05]
[1680433225694,0.003,28377.0,28373.0,0.11337964]
[1680433226892,0.05019567,28380.0,28373.0,0.11337964]
[1680433227099,0.003,28378.0,28373.0,0.11337964]
[1680433227303,0.05019567,28380.0,28373.0,0.05]
[1680433227498,0.003,28377.0,28373.0,0.05]
[1680433228003,0.003,28378.0,28373.0,0.05]
[1680433228195,0.0001552,28377.0,28373.0,0.05]
[1680433230102,0.0031552,28377.0,28373.0,0.05]
[1680433230403,0.0031552,28377.0,28372.0,0.66477964]
[1680433230597,0.0031552,28377.0,28375.0,0.3007]
[1680433231300,0.0031552,28377.0,28376.0,0.05]
[1680433231495,0.0001552,28377.0,28376.0,0.05]
[1680433231700,0.003,28377.0,28375.0,0.3007]
[1680433232295,0.003,28377.0,28373.0,0.05]
[1680433232498,0.003,28377.0,28375.0,0.3007]
[1680433235699,0.053,28377.0,28372.0,0.3007]
[1680433242605,0.003,28377.0,28372.0,0.3007]
[1680433243310,0.00018625,28376.0,28372.0,0.3007]
[1680433243507,0.00018625,28376.0,28373.0,0.05]
[1680433243904,0.00018625,28376.0,28372.0,0.3007]
[1680433244105,0.00018625,28376.0,28373.0,0.05]
[1680433244505,0.00018625,28376.0,28372.0,0.3007]
[1680433244713,0.00018625,28376.0,28373.0,0.05]
[1680433244901,0.00318625,28376.0,28373.0,0.05]
[1680433245103,0.00318625,28376.0,28372.0,0.3007]
[1680433247106,0.00318625,28376.0,28371.0,0.3007]
[1680433247306,0.00318625,28376.0,28372.0,0.05]
[1680433248109,0.00318625,28376.0,28371.0,0.3007]
[1680433252515,0.05318625,28376.0,28371.0,0.3007]
[1680433254315,0.00318625,28376.0,28371.0,0.3007]
[1680433254516,0.05318625,28376.0,28371.0,0.3007]
[1680433255022,0.00318625,28376.0,28371.0,0.3007]
[1680433255320,0.05,28375.0,28371.0,0.3007]
[1680433255520,0.05,28375.0,28369.0,0.04221041]
[1680433255921,0.05,28375.0,28368.0,0.34291041]
[1680433256220,0.3007,28373.0,28368.0,0.34291041]
[1680433256522,0.05,28372.0,28368.0,0.3007]
[1680433258323,0.00034152,28371.0,28368.0,0.3007]
[1680433259912,0.00034152,28371.0,28369.0,0.05]
[1680433260125,0.00034152,28371.0,28368.0,0.3007]
[1680433260319,0.00034152,28371.0,28369.0,0.05]
[1680433260521,0.00034152,28371.0,28368.0,0.3007]
[1680433260825,0.00034152,28371.0,28369.0,0.05]
[1680433261021,0.00334152,28371.0,28369.0,0.05]
[1680433261225,0.00334152,28371.0,28368.0,0.3007]
[1680433265724,0.4,28369.0,28364.0,0.05]
[1680433267622,0.403,28369.0,28364.0,0.05]
[1680433273240,0.00043471,28368.0,28364.0,0.05]
[1680433274742,0.00343471,28368.0,28364.0,0.05]
[1680433278340,0.00337023,28368.0,28364.0,0.05]
[1680433282346,0.00337023,28368.0,28363.0,0.3007]
[1680433282548,0.00337023,28368.0,28364.0,0.22766037]
[1680433282735,0.00337023,28368.0,28365.0,0.05]
[1680433283439,0.00337023,28368.0,28364.0,0.05]
[1680433284542,0.00337023,28368.0,28363.0,0.3007]
[1680433284745,0.00337023,28368.0,28364.0,0.22767406]
[1680433284944,0.00337023,28368.0,28364.0,0.27767406]
[1680433285237,0.00337023,28368.0,28364.0,0.05]
[1680433285442,0.3007,28367.0,28364.0,0.05]
[1680433285848,0.00043236,28366.0,28364.0,0.05]
[1680433287143,0.00343236,28366.0,28364.0,0.05]
[1680433290649,0.00343236,28366.0,28363.0,0.3007]
[1680433290848,0.00343236,28366.0,28364.0,0.27764044]
[1680433291152,0.00343236,28366.0,28365.0,0.05]
[1680433292054,0.00343236,28366.0,28364.0,0.05]
[1680433292348,0.00343236,28366.0,28363.0,0.40630106]
[1680433292651,0.00343236,28366.0,28364.0,0.27760271]
[1680433292850,0.00343236,28366.0,28363.0,0.40630106]
[1680433292851,0.3007,28364.0,28357.0,0.3007]
[1680433293060,0.3007,28364.0,28358.0,0.05]
[1680433293650,0.3007,28364.0,28359.0,0.36780873]
[1680433293949,0.3007,28364.0,28360.0,0.05]
[1680433296055,0.3037,28364.0,28360.0,0.05]
[1680433300454,0.3037,28364.0,28361.0,0.3522]
[1680433300757,0.3037,28364.0,28363.0,0.3522]
[1680433300758,0.003,28364.0,28363.0,0.3522]
[1680433301154,0.00349451,28364.0,28363.0,0.75648816]
[1680433301554,0.003,28364.0,28363.0,0.75648816]
[1680433303157,0.003,28364.0,28363.0,0.40428816]
[1680433303364,0.00349451,28364.0,28363.0,0.40428816]
[1680433304662,0.00349451,28364.0,28362.0,0.05]
[1680433305266,0.3007,28363.0,28362.0,0.05]
[1680433306260,0.00349451,28364.0,28362.0,0.05]
[1680433306460,0.003,28363.0,28362.0,0.05]
[1680433311865,0.003,28363.0,28362.0,0.4022]
[1680433318368,0.00352558,28363.0,28362.0,0.4022]
[1680433319865,0.00352558,28363.0,28362.0,0.52901853]
[1680433320059,0.00352558,28363.0,28362.0,0.90629277]
[1680433320965,0.003,28363.0,28362.0,0.90629277]
[1680433323469,0.00352558,28363.0,28362.0,0.90629277]
[1680433324074,0.003,28363.0,28362.0,0.90629277]
[1680433325275,0.00352558,28363.0,28362.0,0.90629277]
[1680433331579,0.00352558,28363.0,28362.0,0.77947424]
[1680433331969,0.00352558,28363.0,28362.0,0.90629277]
[1680433332982,0.00352558,28363.0,28362.0,0.77947424]
[1680433333983,0.00352558,28363.0,28362.0,0.90629277]
[1680433334183,0.00352558,28363.0,28362.0,0.77947424]
[1680433334687,0.00352558,28363.0,28362.0,0.90629277]
[1680433338189,0.00330862,28363.0,28362.0,0.90629277]
[1680433338387,0.52108261,28368.0,28364.0,0.3522]
[1680433338689,0.52108261,28368.0,28367.0,0.08453616]
[1680433339181,0.3007,28369.0,28367.0,0.08453616]
[1680433339385,0.52108261,28368.0,28367.0,0.08453616]
[1680433339587,0.52408261,28368.0,28367.0,0.08753616]
[1680433340084,0.003,28368.0,28367.0,0.08753616]
[1680433340397,0.52408261,28368.0,28367.0,0.08753616]
[1680433340686,0.52108261,28368.0,28367.0,0.08753616]
[1680433341087,0.52408261,28368.0,28367.0,0.08753616]
[1680433341987,0.3007,28372.0,28368.0,1.45768]
[1680433342188,0.3007,28372.0,28371.0,0.43673153]
[1680433342411,0.52108261,28376.0,28371.0,0.75856441]
[1680433342412,0.82178261,28376.0,28371.0,0.75856441]
[1680433342685,0.82178261,28376.0,28375.0,0.06339496]
[1680433343789,0.82478261,28376.0,28375.0,0.06839496]
[1680433343985,0.82478261,28376.0,28375.0,0.005]
[1680433344783,0.82178261,28376.0,28375.0,0.005]
[1680433344984,0.82478261,28376.0,28375.0,0.005]
[1680433346083,0.82178261,28376.0,28374.0,0.05]
[1680433346284,0.82478261,28376.0,28375.0,0.005]
[1680433347092,0.82478261,28376.0,28374.0,0.055]
[1680433347688,0.82478261,28376.0,28375.0,0.005]
[1680433348189,0.82478261,28376.0,28374.0,0.055]
[1680433349291,0.82478261,28376.0,28375.0,0.005]
[1680433349690,0.52408261,28376.0,28375.0,0.3522]
[1680433350195,0.52408261,28376.0,28375.0,0.3572]
[1680433350695,0.52408261,28376.0,28375.0,0.005]
[1680433352189,0.52408261,28376.0,28375.0,0.0047837]
[1680433360095,0.52108261,28370.0,28369.0,0.0842325]
[1680433360291,0.52108261,28366.0,28362.0,0.06986842]
[1680433360498,0.82178261,28363.0,28358.0,0.10566441]
[1680433360794,0.6014,28359.0,28358.0,0.05]
[1680433361298,0.60152433,28359.0,28358.0,0.05]
[1680433361493,0.60152433,28359.0,28357.0,0.05]
[1680433361694,0.60152433,28359.0,28358.0,0.001]
[1680433362491,0.60452433,28359.0,28358.0,0.001]
[1680433365296,0.60452433,28359.0,28356.0,0.05]
[1680433365501,0.60452433,28359.0,28355.0,0.03524]
[1680433365701,0.3007,28356.0,28355.0,0.03524]
[1680433365901,0.30091759,28356.0,28355.0,0.03524]
[1680433366111,0.30091759,28356.0,28355.0,0.64073232]
[1680433367602,0.30391759,28356.0,28355.0,0.64073232]
[1680433368408,0.30391759,28356.0,28355.0,0.42036473]
[1680433372807,0.30391759,28356.0,28353.0,0.03524]
[1680433373014,0.60461759,28356.0,28355.0,0.03524]
[1680433373311,0.30391759,28356.0,28355.0,0.08524]
[1680433373711,0.30391759,28356.0,28355.0,0.48591553]
[1680433374815,0.30391759,28356.0,28355.0,0.43591553]
[1680433375606,0.30391759,28356.0,28355.0,0.03524]
[1680433377315,0.30269028,28356.0,28355.0,0.03524]
[1680433385616,0.30269028,28356.0,28355.0,0.07724428]
[1680433386013,1.028e-05,28357.0,28355.0,0.07724428]
[1680433386218,1.028e-05,28357.0,28356.0,0.09200428]
[1680433386514,1.028e-05,28357.0,28356.0,0.47339292]
[1680433387022,0.00301028,28357.0,28356.0,0.69374324]
[1680433388019,1.028e-05,28357.0,28356.0,0.69374324]
[1680433388221,0.00301028,28357.0,28356.0,0.69674324]
[1680433388422,0.3007,28360.0,28357.0,0.05]
[1680433388719,0.3007,28365.0,28357.0,0.05]
[1680433388720,0.3007,28362.0,28358.0,0.39653177]
[1680433388917,0.3007,28362.0,28359.0,0.05]
[1680433389720,0.3037,28362.0,28359.0,0.05]
[1680433390124,0.3037,28362.0,28359.0,0.055]
[1680433393226,0.3037,28362.0,28360.0,0.22033773]
[1680433393429,0.3037,28362.0,28361.0,0.05]
[1680433394025,0.3037,28362.0,28360.0,0.05]
[1680433394722,0.3037,28362.0,28361.0,0.22033761]
[1680433396234,0.3007,28370.0,28362.0,0.3552]
[1680433396432,0.3007,28370.0,28365.0,0.3522]
[1680433396624,0.3007,28370.0,28367.0,0.3007]
[1680433396830,0.3007,28370.0,28368.0,0.22033761]
[1680433397131,0.3007,28370.0,28368.0,0.27033761]
[1680433397334,0.3007,28370.0,28369.0,0.05]
[1680433397529,0.3037,28370.0,28369.0,0.05]
[1680433397731,0.3037,28370.0,28368.0,0.05]
[1680433398125,0.3037,28370.0,28367.0,0.3007]
[1680433398332,0.3037,28370.0,28368.0,0.05]
[1680433398827,0.3037,28370.0,28368.0,0.005]
[1680433400132,0.05,28369.0,28368.0,0.005]
[1680433401044,0.05,28369.0,28362.0,0.04199014]
[1680433401238,0.3007,28364.0,28361.0,0.04199014]
[1680433401438,0.05,28363.0,28362.0,0.27033515]
[1680433401638,0.3007,28364.0,28362.0,0.27033515]
[1680433401941,0.05,28363.0,28357.0,0.40573355]
[1680433402138,0.05,28363.0,28349.0,0.95]
[1680433402139,0.3007,28352.0,28349.0,0.08423346]
[1680433402335,0.3007,28346.0,28345.0,0.04573709]
[1680433402537,0.3007,28340.0,28339.0,0.08427454]
[1680433402733,0.3007,28340.0,28336.0,0.12648006]
[1680433402734,0.63018,28340.0,28338.0,0.04214153]
[1680433402934,0.26543,28339.0,28338.0,0.04214153]
[1680433403138,0.26543,28339.0,28337.0,0.04214153]
[1680433403139,0.24489,28339.0,28337.0,0.04214153]
[1680433403340,0.20962,28339.0,28331.0,0.07052]
[1680433403538,0.3007,28336.0,28335.0,0.07052]
[1680433403744,0.05,28338.0,28335.0,0.37122]
[1680433404044,0.00048171,28339.0,28338.0,0.07052]
[1680433404340,0.34643,28345.0,28338.0,0.34284153]
[1680433404542,0.05,28341.0,28340.0,0.07052]
[1680433404739,0.3007,28345.0,28340.0,0.07052]
[1680433404935,0.05,28344.0,28341.0,0.3007]
[1680433405243,0.05,28344.0,28343.0,0.07052]
[1680433405844,0.3007,28348.0,28343.0,0.07052]
[1680433406142,0.3007,28348.0,28347.0,0.07052]
[1680433408046,0.3007,28348.0,28347.0,0.09852]
[1680433408238,0.30094881,28348.0,28347.0,0.09852]
[1680433410941,0.30094881,28348.0,28347.0,0.028]
[1680433412038,0.30094881,28348.0,28335.0,0.04214153]
[1680433412039,0.32948,28342.0,28335.0,0.04214153]
[1680433412346,0.05,28336.0,28334.0,0.07052]
[1680433413046,0.3007,28339.0,28334.0,0.07052]
[1680433413250,0.05,28336.0,28334.0,0.07052]
[1680433413448,0.05,28338.0,28334.0,0.07052]
[1680433413644,0.003,28336.0,28334.0,0.07052]
[1680433414351,0.3037,28336.0,28334.0,0.07052]
[1680433414849,0.05,28335.0,28334.0,0.07052]
[1680433416449,0.053,28335.0,28334.0,0.07052]
[1680433416746,0.3537,28335.0,28331.0,0.07052]
[1680433417044,0.3007,28332.0,28331.0,0.07052]
[1680433417648,0.05,28334.0,28331.0,0.07052]
[1680433417848,0.3007,28332.0,28331.0,0.07052]
[1680433419046,0.3037,28332.0,28331.0,0.07052]
[1680433420452,0.3037,28332.0,28327.0,0.3094]
[1680433420453,0.05,28331.0,28329.0,0.07052]
[1680433420647,0.3507,28331.0,28329.0,0.07052]
[1680433420849,0.05,28330.0,28329.0,0.07052]
[1680433422048,0.05,28330.0,28327.0,0.07052]
[1680433422249,0.3007,28328.0,28327.0,0.07052]
[1680433423163,0.3037,28328.0,28327.0,0.07052]
[1680433423352,0.30457144,28328.0,28327.0,0.07052]
[1680433423544,0.30457144,28328.0,28325.0,0.07052]
[1680433423545,0.30157144,28328.0,28325.0,0.07052]
[1680433423745,0.60527144,28328.0,28325.0,0.07052]
[1680433424255,0.60527144,28328.0,28326.0,0.05]
[1680433424455,0.30457144,28328.0,28326.0,0.05]
[1680433424650,0.30457144,28328.0,28325.0,0.07052]
[1680433426153,0.30457144,28328.0,28326.0,0.05]
[1680433426955,0.00387144,28328.0,28326.0,0.05]
[1680433427151,0.29646377,28333.0,28330.0,0.07052]
[1680433427358,0.3007,28337.0,28332.0,0.05]
[1680433427657,0.3007,28337.0,28334.0,0.3007]
[1680433427953,0.3007,28337.0,28335.0,0.05]
[1680433428160,0.3007,28337.0,28334.0,0.3007]
[1680433428360,0.3007,28337.0,28335.0,0.05]
[1680433428659,0.05,28336.0,28333.0,0.07052]
[1680433428961,0.05,28336.0,28334.0,0.07052]
[1680433429160,0.05,28336.0,28332.0,0.001]
[1680433429456,0.3007,28334.0,28330.0,0.07052]
[1680433429665,0.05,28333.0,28330.0,0.07052]
[1680433430160,0.05,28333.0,28326.0,0.05]
[1680433430161,0.3007,28331.0,28326.0,0.07052]
[1680433430366,0.3007,28327.0,28326.0,0.07052]
[1680433430557,0.05,28330.0,28326.0,0.07052]
[1680433431762,0.05,28330.0,28326.0,0.07152]
[1680433431964,0.3007,28328.0,28326.0,0.07152]
[1680433432165,0.05,28327.0,28326.0,0.07152]
[1680433433165,0.05,28327.0,28326.0,0.07052]
[1680433433366,0.053,28327.0,28326.0,0.07152]
[1680433433967,0.003,28327.0,28326.0,0.07152]
[1680433434167,0.053,28327.0,28326.0,0.07152]
[1680433434970,0.003,28327.0,28326.0,0.07152]